[Event "Titled Tuesday Blitz April 11 Early 2023"]
[White "Gil Alba, Hector Luis"]
[Black "Khoroshev, Nikita"]
[WhiteFideId "3504670"]
[BlackFideId "14200287"]
[WhiteElo "2331"]
[BlackElo "2354"]
[Result "1-0"]
[Round "01"]
[TimeControl "180+2"]
[Date "2023.04.11"]
[WhiteClock "0:01:05"]
[BlackClock "0:00:48"]

1. e4 {[%clk 0:02:57]}  e5 {[%clk 0:02:55]} 2. Nf3 {[%clk 0:02:56]}  Nc6 {[%clk 0:02:54]} 3. Bb5 {[%clk 0:02:56]}  a6 {[%clk 0:02:54]} 4. Ba4 {[%clk 0:02:55]}  Nf6 {[%clk 0:02:53]} 5. d3 {[%clk 0:02:54]}  b5 {[%clk 0:02:46]} 6. Bb3 {[%clk 0:02:53]}  Be7 {[%clk 0:02:46]} 7. O-O {[%clk 0:02:48]}  O-O {[%clk 0:02:42]} 8. c3 {[%clk 0:02:48]}  d6 {[%clk 0:02:41]} 9. Nbd2 {[%clk 0:02:48]}  Na5 {[%clk 0:02:40]} 10. Bc2 {[%clk 0:02:48]}  c5 {[%clk 0:02:39]} 11. Re1 {[%clk 0:02:48]}  Re8 {[%clk 0:02:37]} 12. Nf1 {[%clk 0:02:46]}  Bf8 {[%clk 0:02:37]} 13. h3 {[%clk 0:02:46]}  g6 {[%clk 0:02:36]} 14. Ng3 {[%clk 0:02:46]}  Nc6 {[%clk 0:02:35]} 15. Be3 {[%clk 0:02:46]}  d5 {[%clk 0:02:30]} 16. Qc1 {[%clk 0:02:41]}  d4 {[%clk 0:02:28]} 17. cxd4 {[%clk 0:02:32]}  Nxd4 {[%clk 0:02:24]} 18. Nxd4 {[%clk 0:02:30]}  exd4 {[%clk 0:02:17]} 19. Bg5 {[%clk 0:02:30]}  h6 {[%clk 0:02:16]} 20. Bxh6 {[%clk 0:02:29]}  Be6 {[%clk 0:02:07]} 21. Bxf8 {[%clk 0:02:25]}  Rxf8 {[%clk 0:02:05]} 22. Qh6 {[%clk 0:02:17]}  Nh7 {[%clk 0:02:03]} 23. f4 {[%clk 0:02:15]}  Qf6 {[%clk 0:01:56]} 24. e5 {[%clk 0:02:07]}  Qg7 {[%clk 0:01:54]} 25. Qxg7+ {[%clk 0:01:56]}  Kxg7 {[%clk 0:01:54]} 26. Ne4 {[%clk 0:01:55]}  c4 {[%clk 0:01:54]} 27. Red1 {[%clk 0:01:52]}  Rfd8 {[%clk 0:01:53]} 28. Nd6 {[%clk 0:01:52]}  c3 {[%clk 0:01:49]} 29. bxc3 {[%clk 0:01:52]}  dxc3 {[%clk 0:01:48]} 30. d4 {[%clk 0:01:52]}  Bd5 {[%clk 0:01:36]} 31. a3 {[%clk 0:01:45]}  Nf8 {[%clk 0:01:31]} 32. f5 {[%clk 0:01:39]}  gxf5 {[%clk 0:01:28]} 33. Bxf5 {[%clk 0:01:39]}  Ra7 {[%clk 0:01:20]} 34. Rac1 {[%clk 0:01:33]}  Rc7 {[%clk 0:01:15]} 35. Rd3 {[%clk 0:01:30]}  c2 {[%clk 0:01:08]} 36. Rg3+ {[%clk 0:01:29]}  Kh8 {[%clk 0:01:08]} 37. Rxc2 {[%clk 0:01:28]}  Rxc2 {[%clk 0:01:04]} 38. Bxc2 {[%clk 0:01:28]}  Rd7 {[%clk 0:01:03]} 39. Rc3 {[%clk 0:01:22]}  f6 {[%clk 0:00:56]} 40. Rc8 {[%clk 0:01:16]}  fxe5 {[%clk 0:00:52]} 41. dxe5 {[%clk 0:01:09]}  Kg7 {[%clk 0:00:52]} 42. Ne8+ {[%clk 0:01:07]}  Kf7 {[%clk 0:00:49]} 43. Nf6 {[%clk 0:01:07]}  Bb7 {[%clk 0:00:48]} 44. Rxf8+ {[%clk 0:01:05]}  Kxf8 {[%clk 0:00:47]} 45. Nxd7+ {[%clk 0:01:05]}  Ke7 {[%clk 0:00:48]} 46. Nc5 {[%clk 0:01:05]} 1-0


[Site "https://www.chess.com"]

[Event "Titled Tuesday Blitz April 11 Early 2023"]
[White "Jaracz, Pawel"]
[Black "Melaugh, Shane"]
[WhiteFideId "1102222"]
[BlackFideId "2509580"]
[WhiteElo "2438"]
[BlackElo "2034"]
[Result "1-0"]
[Round "01"]
[TimeControl "180+2"]
[Date "2023.04.11"]
[WhiteClock "0:01:12"]
[BlackClock "0:00:38"]

1. Nf3 {[%clk 0:02:58]}  f5 {[%clk 0:02:58]} 2. b4 {[%clk 0:02:57]}  d6 {[%clk 0:02:57]} 3. Bb2 {[%clk 0:02:57]}  e5 {[%clk 0:02:57]} 4. e3 {[%clk 0:02:55]}  Nf6 {[%clk 0:02:56]} 5. c4 {[%clk 0:02:55]}  Be7 {[%clk 0:02:55]} 6. Nc3 {[%clk 0:02:52]}  a5 {[%clk 0:02:55]} 7. b5 {[%clk 0:02:49]}  O-O {[%clk 0:02:53]} 8. d4 {[%clk 0:02:47]}  e4 {[%clk 0:02:46]} 9. Nd2 {[%clk 0:02:47]}  Be6 {[%clk 0:02:38]} 10. Be2 {[%clk 0:02:45]}  c6 {[%clk 0:02:36]} 11. a4 {[%clk 0:02:43]}  d5 {[%clk 0:02:36]} 12. O-O {[%clk 0:02:42]}  Bd6 {[%clk 0:02:13]} 13. Qb3 {[%clk 0:02:20]}  f4 {[%clk 0:01:47]} 14. cxd5 {[%clk 0:02:10]}  cxd5 {[%clk 0:01:43]} 15. Ndxe4 {[%clk 0:02:08]}  fxe3 {[%clk 0:01:35]} 16. fxe3 {[%clk 0:02:03]}  Nxe4 {[%clk 0:01:30]} 17. Rxf8+ {[%clk 0:01:50]}  Kxf8 {[%clk 0:01:28]} 18. Nxe4 {[%clk 0:01:50]}  Bxh2+ {[%clk 0:01:28]} 19. Kxh2 {[%clk 0:01:46]}  Qh4+ {[%clk 0:01:29]} 20. Kg1 {[%clk 0:01:46]}  Qxe4 {[%clk 0:01:28]} 21. Bf3 {[%clk 0:01:36]}  Qg6 {[%clk 0:01:18]} 22. Bxd5 {[%clk 0:01:27]}  Ke7 {[%clk 0:00:39]} 23. Ba3+ {[%clk 0:01:22]}  Kd7 {[%clk 0:00:38]} 24. Rf1 {[%clk 0:01:16]}  Bf5 {[%clk 0:00:38]} 25. e4 {[%clk 0:01:13]}  Bh3 {[%clk 0:00:38]} 26. Qxh3+ {[%clk 0:01:12]} 1-0


[Site "https://www.chess.com"]

[Event "Titled Tuesday Blitz April 11 Early 2023"]
[White "Toktomushev, Teimur"]
[Black "Karttunen, Mika"]
[WhiteFideId "14176726"]
[BlackFideId "502081"]
[WhiteElo "2116"]
[BlackElo "2396"]
[Result "1/2-1/2"]
[Round "01"]
[TimeControl "180+2"]
[Date "2023.04.11"]
[WhiteClock "0:00:04"]
[BlackClock "0:00:23"]

1. d4 {[%clk 0:02:59]}  Nf6 {[%clk 0:02:59]} 2. c4 {[%clk 0:02:59]}  e6 {[%clk 0:03:00]} 3. Nf3 {[%clk 0:02:56]}  d5 {[%clk 0:03:00]} 4. Nc3 {[%clk 0:02:54]}  Bb4 {[%clk 0:03:00]} 5. Qa4+ {[%clk 0:02:53]}  Nc6 {[%clk 0:03:00]} 6. e3 {[%clk 0:02:52]}  O-O {[%clk 0:02:59]} 7. Qc2 {[%clk 0:02:44]}  Re8 {[%clk 0:02:48]} 8. Bd2 {[%clk 0:02:37]}  h6 {[%clk 0:02:46]} 9. Bd3 {[%clk 0:02:22]}  dxc4 {[%clk 0:02:42]} 10. Bxc4 {[%clk 0:02:22]}  e5 {[%clk 0:02:41]} 11. dxe5 {[%clk 0:01:16]}  Ng4 {[%clk 0:02:13]} 12. Qb3 {[%clk 0:00:51]}  Be6 {[%clk 0:02:10]} 13. a3 {[%clk 0:00:36]}  Bf8 {[%clk 0:01:45]} 14. Bxe6 {[%clk 0:00:33]}  Rxe6 {[%clk 0:01:45]} 15. O-O {[%clk 0:00:28]}  Ncxe5 {[%clk 0:01:37]} 16. Nxe5 {[%clk 0:00:28]}  Rxe5 {[%clk 0:01:33]} 17. h3 {[%clk 0:00:16]}  Nf6 {[%clk 0:01:21]} 18. Rfd1 {[%clk 0:00:13]}  Qc8 {[%clk 0:01:02]} 19. Ne2 {[%clk 0:00:10]}  c6 {[%clk 0:00:57]} 20. Bc3 {[%clk 0:00:10]}  Rb5 {[%clk 0:00:55]} 21. Qc2 {[%clk 0:00:10]}  Be7 {[%clk 0:00:40]} 22. Ng3 {[%clk 0:00:09]}  Rg5 {[%clk 0:00:38]} 23. Rd2 {[%clk 0:00:04]}  h5 {[%clk 0:00:38]} 24. Kh1 {[%clk 0:00:02]}  h4 {[%clk 0:00:38]} 25. Ne4 {[%clk 0:00:03]}  Rg6 {[%clk 0:00:31]} 26. Nxf6+ {[%clk 0:00:03]}  Bxf6 {[%clk 0:00:32]} 27. Bxf6 {[%clk 0:00:03]}  Rxf6 {[%clk 0:00:32]} 28. Rad1 {[%clk 0:00:04]}  Qc7 {[%clk 0:00:29]} 29. Rd7 {[%clk 0:00:04]}  Qb6 {[%clk 0:00:29]} 30. R1d2 {[%clk 0:00:03]}  Re8 {[%clk 0:00:29]} 31. Qc4 {[%clk 0:00:03]}  g6 {[%clk 0:00:28]} 32. Qxh4 {[%clk 0:00:03]}  Kg7 {[%clk 0:00:28]} 33. Qg3 {[%clk 0:00:02]}  Qb3 {[%clk 0:00:25]} 34. Qc7 {[%clk 0:00:03]}  b6 {[%clk 0:00:24]} 35. Kh2 {[%clk 0:00:03]}  c5 {[%clk 0:00:24]} 36. R7d6 {[%clk 0:00:03]}  Rxd6 {[%clk 0:00:23]} 37. Qxd6 {[%clk 0:00:04]}  Re6 {[%clk 0:00:23]} 38. Qf4 {[%clk 0:00:03]}  Qb5 {[%clk 0:00:23]} 39. Qg4 {[%clk 0:00:03]}  Rf6 {[%clk 0:00:23]} 40. Qg3 {[%clk 0:00:02]}  Qc6 {[%clk 0:00:23]} 41. Rd8 {[%clk 0:00:02]}  Qe4 {[%clk 0:00:23]} 42. Qg4 {[%clk 0:00:01]}  Qxg4 {[%clk 0:00:22]} 43. hxg4 {[%clk 0:00:02]}  Rxf2 {[%clk 0:00:22]} 44. b4 {[%clk 0:00:03]}  cxb4 {[%clk 0:00:22]} 45. axb4 {[%clk 0:00:04]}  Rb2 {[%clk 0:00:22]} 46. Rd7 {[%clk 0:00:03]}  a6 {[%clk 0:00:22]} 47. Ra7 {[%clk 0:00:03]}  Ra2 {[%clk 0:00:21]} 48. Rb7 {[%clk 0:00:02]}  Kf6 {[%clk 0:00:22]} 49. Rxb6+ {[%clk 0:00:02]}  Kg5 {[%clk 0:00:22]} 50. Kg3 {[%clk 0:00:02]}  Ra3 {[%clk 0:00:22]} 51. Kf3 {[%clk 0:00:03]}  Ra4 {[%clk 0:00:22]} 52. b5 {[%clk 0:00:02]}  a5 {[%clk 0:00:21]} 53. Ra6 {[%clk 0:00:03]}  Ra3 {[%clk 0:00:22]} 54. b6 {[%clk 0:00:03]}  f5 {[%clk 0:00:22]} 55. gxf5 {[%clk 0:00:03]}  gxf5 {[%clk 0:00:23]} 56. b7 {[%clk 0:00:03]}  Rb3 {[%clk 0:00:23]} 57. Rxa5 {[%clk 0:00:03]}  Rxb7 {[%clk 0:00:24]} 58. g4 {[%clk 0:00:03]}  Rf7 {[%clk 0:00:23]} 59. Re5 {[%clk 0:00:03]}  Kg6 {[%clk 0:00:23]} 60. gxf5+ {[%clk 0:00:04]}  Rxf5+ {[%clk 0:00:23]} 61. Ke4 {[%clk 0:00:04]}  Rf1 {[%clk 0:00:23]} 62. Kd5 {[%clk 0:00:04]}  Kf6 {[%clk 0:00:22]} 63. Re4 {[%clk 0:00:03]}  Rd1+ {[%clk 0:00:22]} 64. Rd4 {[%clk 0:00:04]}  Re1 {[%clk 0:00:22]} 65. e4 {[%clk 0:00:04]}  Ke7 {[%clk 0:00:22]} 66. e5 {[%clk 0:00:04]}  Ra1 {[%clk 0:00:22]} 67. Rh4 {[%clk 0:00:04]}  Ra5+ {[%clk 0:00:22]} 68. Kc6 {[%clk 0:00:03]}  Rxe5 {[%clk 0:00:22]} 69. Rh7+ {[%clk 0:00:03]}  Kf8 {[%clk 0:00:22]} 70. Rh6 {[%clk 0:00:03]}  Kg7 {[%clk 0:00:22]} 71. Rd6 {[%clk 0:00:03]}  Rg5 {[%clk 0:00:22]} 72. Rd7+ {[%clk 0:00:04]}  Kh6 {[%clk 0:00:22]} 73. Rd6+ {[%clk 0:00:05]}  Rg6 {[%clk 0:00:22]} 74. Rxg6+ {[%clk 0:00:04]}  Kxg6 {[%clk 0:00:23]} 1/2-1/2


[Site "https://www.chess.com"]

[Event "Titled Tuesday Blitz April 11 Early 2023"]
[White "Korchmar, Vasiliy"]
[Black "Shukhman, Anna"]
[WhiteFideId "24131750"]
[BlackFideId "54180058"]
[WhiteElo "2370"]
[BlackElo "2125"]
[Result "1-0"]
[Round "01"]
[TimeControl "180+2"]
[Date "2023.04.11"]
[WhiteClock "0:00:04"]
[BlackClock "0:00:06"]

1. e4 {[%clk 0:03:00]}  c5 {[%clk 0:02:58]} 2. Nf3 {[%clk 0:02:59]}  a6 {[%clk 0:02:58]} 3. c4 {[%clk 0:02:53]}  Nc6 {[%clk 0:02:57]} 4. Nc3 {[%clk 0:02:33]}  e5 {[%clk 0:02:53]} 5. g3 {[%clk 0:02:29]}  d6 {[%clk 0:02:52]} 6. Bg2 {[%clk 0:02:26]}  g6 {[%clk 0:02:52]} 7. O-O {[%clk 0:02:25]}  Bg7 {[%clk 0:02:53]} 8. d3 {[%clk 0:02:24]}  Nge7 {[%clk 0:02:54]} 9. a3 {[%clk 0:02:15]}  O-O {[%clk 0:02:53]} 10. Rb1 {[%clk 0:02:15]}  Rb8 {[%clk 0:02:52]} 11. b4 {[%clk 0:02:14]}  cxb4 {[%clk 0:02:53]} 12. axb4 {[%clk 0:02:15]}  b5 {[%clk 0:02:53]} 13. cxb5 {[%clk 0:02:08]}  axb5 {[%clk 0:02:52]} 14. Be3 {[%clk 0:02:07]}  f5 {[%clk 0:02:44]} 15. exf5 {[%clk 0:02:01]}  d5 {[%clk 0:02:28]} 16. fxg6 {[%clk 0:01:28]}  d4 {[%clk 0:02:26]} 17. Ng5 {[%clk 0:01:23]}  dxe3 {[%clk 0:01:59]} 18. Qb3+ {[%clk 0:01:24]}  Kh8 {[%clk 0:01:59]} 19. Nf7+ {[%clk 0:01:24]}  Rxf7 {[%clk 0:01:59]} 20. gxf7 {[%clk 0:01:24]}  Nd4 {[%clk 0:01:56]} 21. Qb2 {[%clk 0:01:13]}  e2 {[%clk 0:01:52]} 22. Nxe2 {[%clk 0:01:12]}  Be6 {[%clk 0:01:51]} 23. Nxd4 {[%clk 0:01:10]}  exd4 {[%clk 0:01:50]} 24. Ra1 {[%clk 0:00:46]}  Bxf7 {[%clk 0:01:48]} 25. Ra7 {[%clk 0:00:46]}  Bg6 {[%clk 0:01:33]} 26. Rfa1 {[%clk 0:00:38]}  Nd5 {[%clk 0:01:32]} 27. Qb3 {[%clk 0:00:34]}  Nb6 {[%clk 0:01:09]} 28. h4 {[%clk 0:00:18]}  Qg8 {[%clk 0:01:08]} 29. Qc2 {[%clk 0:00:17]}  Rc8 {[%clk 0:01:07]} 30. Qe2 {[%clk 0:00:16]}  Nd5 {[%clk 0:01:04]} 31. h5 {[%clk 0:00:16]}  Bf7 {[%clk 0:01:02]} 32. Rb7 {[%clk 0:00:10]}  Nc3 {[%clk 0:01:01]} 33. Qe7 {[%clk 0:00:10]}  Bd5 {[%clk 0:00:46]} 34. Bxd5 {[%clk 0:00:06]}  Nxd5 {[%clk 0:00:47]} 35. Qd7 {[%clk 0:00:06]}  Rd8 {[%clk 0:00:46]} 36. Qg4 {[%clk 0:00:04]}  Nf6 {[%clk 0:00:44]} 37. Qf3 {[%clk 0:00:04]}  Qd5 {[%clk 0:00:29]} 38. Qxd5 {[%clk 0:00:04]}  Nxd5 {[%clk 0:00:30]} 39. Raa7 {[%clk 0:00:04]}  Rg8 {[%clk 0:00:23]} 40. h6 {[%clk 0:00:04]}  Rc8 {[%clk 0:00:10]} 41. Rxg7 {[%clk 0:00:04]}  Nf6 {[%clk 0:00:08]} 42. Rgf7 {[%clk 0:00:04]}  Ne8 {[%clk 0:00:06]} 43. Rf8# {[%clk 0:00:04]} 1-0


[Site "https://www.chess.com"]

[Event "Titled Tuesday Blitz April 11 Early 2023"]
[White "Zeman, Matyas"]
[Black "Averjanov, Alexey"]
[WhiteFideId "364398"]
[BlackFideId "14109867"]
[WhiteElo "2254"]
[BlackElo "2726"]
[Result "0-1"]
[Round "01"]
[TimeControl "180+2"]
[Date "2023.04.11"]
[WhiteClock "0:00:04"]
[BlackClock "0:01:26"]

1. d4 {[%clk 0:02:51]}  d5 {[%clk 0:02:59]} 2. Bf4 {[%clk 0:02:39]}  Nf6 {[%clk 0:02:59]} 3. e3 {[%clk 0:02:39]}  e6 {[%clk 0:02:58]} 4. Nf3 {[%clk 0:02:39]}  c5 {[%clk 0:02:58]} 5. Nbd2 {[%clk 0:02:36]}  Bd6 {[%clk 0:02:58]} 6. Bg3 {[%clk 0:02:31]}  Qc7 {[%clk 0:02:58]} 7. dxc5 {[%clk 0:02:28]}  Qxc5 {[%clk 0:02:58]} 8. Rc1 {[%clk 0:02:26]}  O-O {[%clk 0:02:55]} 9. c4 {[%clk 0:02:24]}  Bxg3 {[%clk 0:02:55]} 10. hxg3 {[%clk 0:02:25]}  Nc6 {[%clk 0:02:54]} 11. a3 {[%clk 0:02:19]}  Rd8 {[%clk 0:02:52]} 12. cxd5 {[%clk 0:02:16]}  Qxd5 {[%clk 0:02:51]} 13. Bc4 {[%clk 0:02:14]}  Qd6 {[%clk 0:02:51]} 14. Qc2 {[%clk 0:02:10]}  h6 {[%clk 0:02:47]} 15. O-O {[%clk 0:01:57]}  Bd7 {[%clk 0:02:47]} 16. Rfd1 {[%clk 0:01:57]}  Qe7 {[%clk 0:02:45]} 17. Ne4 {[%clk 0:01:51]}  Nxe4 {[%clk 0:02:43]} 18. Qxe4 {[%clk 0:01:51]}  Rac8 {[%clk 0:02:41]} 19. g4 {[%clk 0:01:13]}  Be8 {[%clk 0:02:35]} 20. Bd3 {[%clk 0:01:09]}  g6 {[%clk 0:02:32]} 21. Bb1 {[%clk 0:01:01]}  Qf6 {[%clk 0:02:28]} 22. Rxd8 {[%clk 0:00:31]}  Rxd8 {[%clk 0:02:28]} 23. Qc2 {[%clk 0:00:32]}  Ne5 {[%clk 0:02:22]} 24. Nxe5 {[%clk 0:00:29]}  Qxe5 {[%clk 0:02:23]} 25. b4 {[%clk 0:00:25]}  Bc6 {[%clk 0:02:22]} 26. Rd1 {[%clk 0:00:24]}  Rd5 {[%clk 0:02:18]} 27. Rxd5 {[%clk 0:00:23]}  Qxd5 {[%clk 0:02:19]} 28. f3 {[%clk 0:00:21]}  Kf8 {[%clk 0:02:09]} 29. Qd3 {[%clk 0:00:21]}  Qe5 {[%clk 0:01:58]} 30. Kf2 {[%clk 0:00:19]}  Qb2+ {[%clk 0:01:56]} 31. Kg3 {[%clk 0:00:19]}  Qe5+ {[%clk 0:01:56]} 32. Kf2 {[%clk 0:00:20]}  Ke7 {[%clk 0:01:54]} 33. Qd4 {[%clk 0:00:16]}  Qxd4 {[%clk 0:01:52]} 34. exd4 {[%clk 0:00:17]}  Kd6 {[%clk 0:01:52]} 35. Ke3 {[%clk 0:00:17]}  b6 {[%clk 0:01:50]} 36. Be4 {[%clk 0:00:15]}  Bb5 {[%clk 0:01:47]} 37. g3 {[%clk 0:00:14]}  g5 {[%clk 0:01:47]} 38. f4 {[%clk 0:00:14]}  f6 {[%clk 0:01:48]} 39. Bf3 {[%clk 0:00:13]}  a5 {[%clk 0:01:47]} 40. Kd2 {[%clk 0:00:12]}  Bc4 {[%clk 0:01:45]} 41. Kc3 {[%clk 0:00:12]}  Bd5 {[%clk 0:01:46]} 42. Be2 {[%clk 0:00:13]}  Kc6 {[%clk 0:01:44]} 43. Kd2 {[%clk 0:00:10]}  Bg2 {[%clk 0:01:40]} 44. Bc4 {[%clk 0:00:08]}  Kd6 {[%clk 0:01:37]} 45. Ke3 {[%clk 0:00:08]}  Bc6 {[%clk 0:01:35]} 46. Bb3 {[%clk 0:00:07]}  axb4 {[%clk 0:01:35]} 47. axb4 {[%clk 0:00:07]}  Bd5 {[%clk 0:01:35]} 48. Ba4 {[%clk 0:00:07]}  Bc6 {[%clk 0:01:35]} 49. Bb3 {[%clk 0:00:07]}  Bb5 {[%clk 0:01:34]} 50. Bc2 {[%clk 0:00:07]}  Bc4 {[%clk 0:01:34]} 51. Be4 {[%clk 0:00:07]}  Bb3 {[%clk 0:01:32]} 52. Bf3 {[%clk 0:00:07]}  Bc2 {[%clk 0:01:32]} 53. Be2 {[%clk 0:00:07]}  Kd5 {[%clk 0:01:28]} 54. fxg5 {[%clk 0:00:02]}  hxg5 {[%clk 0:01:28]} 55. Bf3+ {[%clk 0:00:03]}  Kc4 {[%clk 0:01:26]} 56. Be4 {[%clk 0:00:02]}  Bxe4 {[%clk 0:01:25]} 57. Kxe4 {[%clk 0:00:03]}  Kxb4 {[%clk 0:01:26]} 58. d5 {[%clk 0:00:04]}  exd5+ {[%clk 0:01:26]} 59. Kf5 {[%clk 0:00:04]}  d4 {[%clk 0:01:26]} 0-1


[Site "https://www.chess.com"]

[Event "Titled Tuesday Blitz April 11 Early 2023"]
[White "Avazkhonov, Alikhon"]
[Black "Pakleza, Zbigniew"]
[WhiteFideId "14208504"]
[BlackFideId "1119290"]
[WhiteElo "1739"]
[BlackElo "2410"]
[Result "1-0"]
[Round "01"]
[TimeControl "180+2"]
[Date "2023.04.11"]
[WhiteClock "0:00:04"]
[BlackClock "0:00:01"]

1. d4 {[%clk 0:02:59]}  d6 {[%clk 0:02:59]} 2. e4 {[%clk 0:02:59]}  Nf6 {[%clk 0:02:59]} 3. Nc3 {[%clk 0:02:58]}  c6 {[%clk 0:02:59]} 4. f3 {[%clk 0:02:58]}  Qb6 {[%clk 0:02:58]} 5. a3 {[%clk 0:02:50]}  e5 {[%clk 0:02:57]} 6. Be3 {[%clk 0:02:49]}  Nbd7 {[%clk 0:02:58]} 7. Nge2 {[%clk 0:02:48]}  Be7 {[%clk 0:02:52]} 8. Na4 {[%clk 0:02:28]}  Qc7 {[%clk 0:02:48]} 9. Qd2 {[%clk 0:02:25]}  O-O {[%clk 0:02:46]} 10. g4 {[%clk 0:02:24]}  d5 {[%clk 0:02:41]} 11. g5 {[%clk 0:02:17]}  Nh5 {[%clk 0:02:35]} 12. Nac3 {[%clk 0:02:18]}  dxe4 {[%clk 0:02:25]} 13. Nxe4 {[%clk 0:02:14]}  Nb6 {[%clk 0:02:23]} 14. Qa5 {[%clk 0:01:36]}  exd4 {[%clk 0:02:09]} 15. Bxd4 {[%clk 0:01:28]}  Rd8 {[%clk 0:02:01]} 16. O-O-O {[%clk 0:01:13]}  Be6 {[%clk 0:01:52]} 17. Nf6+ {[%clk 0:00:35]}  gxf6 {[%clk 0:00:48]} 18. gxf6 {[%clk 0:00:35]}  Nxf6 {[%clk 0:00:49]} 19. Qg5+ {[%clk 0:00:24]}  Kf8 {[%clk 0:00:49]} 20. Rg1 {[%clk 0:00:11]}  Ke8 {[%clk 0:00:34]} 21. Nf4 {[%clk 0:00:05]}  Nfd5 {[%clk 0:00:20]} 22. Qg8+ {[%clk 0:00:05]}  Kd7 {[%clk 0:00:21]} 23. Nxe6 {[%clk 0:00:05]}  Rxg8 {[%clk 0:00:17]} 24. Nxc7 {[%clk 0:00:06]}  Rxg1 {[%clk 0:00:06]} 25. Nxa8 {[%clk 0:00:06]}  Nxa8 {[%clk 0:00:07]} 26. Bh3+ {[%clk 0:00:06]}  Kc7 {[%clk 0:00:06]} 27. Rxg1 {[%clk 0:00:06]}  Nf4 {[%clk 0:00:05]} 28. Bf1 {[%clk 0:00:07]}  Bd6 {[%clk 0:00:05]} 29. Be3 {[%clk 0:00:06]}  Nd5 {[%clk 0:00:05]} 30. Bd2 {[%clk 0:00:06]}  Bxh2 {[%clk 0:00:05]} 31. Rg7 {[%clk 0:00:07]}  h5 {[%clk 0:00:04]} 32. Rxf7+ {[%clk 0:00:07]}  Kb6 {[%clk 0:00:03]} 33. Rh7 {[%clk 0:00:08]}  Bd6 {[%clk 0:00:02]} 34. Rxh5 {[%clk 0:00:08]}  Nac7 {[%clk 0:00:03]} 35. c4 {[%clk 0:00:07]}  Nf6 {[%clk 0:00:02]} 36. Rf5 {[%clk 0:00:03]}  Nd7 {[%clk 0:00:02]} 37. b4 {[%clk 0:00:03]}  c5 {[%clk 0:00:02]} 38. Bd3 {[%clk 0:00:03]}  a5 {[%clk 0:00:01]} 39. bxa5+ {[%clk 0:00:03]}  Ka7 {[%clk 0:00:01]} 40. Bc3 {[%clk 0:00:03]}  Nb8 {[%clk 0:00:01]} 41. Kc2 {[%clk 0:00:04]}  Nc6 {[%clk 0:00:01]} 42. Rf6 {[%clk 0:00:04]}  Be7 {[%clk 0:00:01]} 43. Rg6 {[%clk 0:00:04]} 1-0


[Site "https://www.chess.com"]

[Event "Titled Tuesday Blitz April 11 Early 2023"]
[White "Pourkashiyan, Atousa"]
[Black "Fishchuk, Vladyslav"]
[WhiteFideId "12502014"]
[BlackFideId "34122117"]
[WhiteElo "2228"]
[BlackElo "2082"]
[Result "0-1"]
[Round "01"]
[TimeControl "180+2"]
[Date "2023.04.11"]
[WhiteClock "0:00:01"]
[BlackClock "0:01:26"]

1. e4 {[%clk 0:01:39]}  c5 {[%clk 0:02:58]} 2. Nf3 {[%clk 0:01:38]}  Nf6 {[%clk 0:02:58]} 3. e5 {[%clk 0:01:37]}  Nd5 {[%clk 0:02:58]} 4. Nc3 {[%clk 0:01:37]}  e6 {[%clk 0:02:58]} 5. Nxd5 {[%clk 0:01:35]}  exd5 {[%clk 0:02:59]} 6. d4 {[%clk 0:01:36]}  Nc6 {[%clk 0:02:59]} 7. Be2 {[%clk 0:01:32]}  cxd4 {[%clk 0:02:50]} 8. O-O {[%clk 0:01:29]}  Bc5 {[%clk 0:02:39]} 9. a3 {[%clk 0:01:29]}  a5 {[%clk 0:02:37]} 10. Bd3 {[%clk 0:01:29]}  h6 {[%clk 0:02:34]} 11. Bd2 {[%clk 0:01:21]}  O-O {[%clk 0:02:34]} 12. Qc1 {[%clk 0:01:11]}  d6 {[%clk 0:02:16]} 13. Re1 {[%clk 0:00:48]}  Bg4 {[%clk 0:02:10]} 14. Bxh6 {[%clk 0:00:31]}  Bxf3 {[%clk 0:02:05]} 15. Bg5 {[%clk 0:00:25]}  Qd7 {[%clk 0:01:54]} 16. Qf4 {[%clk 0:00:16]}  Bh5 {[%clk 0:01:52]} 17. Qh4 {[%clk 0:00:09]}  Qg4 {[%clk 0:01:51]} 18. exd6 {[%clk 0:00:06]}  Qxh4 {[%clk 0:01:49]} 19. Bxh4 {[%clk 0:00:06]}  Bxd6 {[%clk 0:01:49]} 20. h3 {[%clk 0:00:05]}  Bg6 {[%clk 0:01:49]} 21. Bxg6 {[%clk 0:00:05]}  fxg6 {[%clk 0:01:50]} 22. Rad1 {[%clk 0:00:04]}  Rae8 {[%clk 0:01:48]} 23. Bg5 {[%clk 0:00:04]}  Kf7 {[%clk 0:01:46]} 24. Rxe8 {[%clk 0:00:02]}  Rxe8 {[%clk 0:01:45]} 25. Kf1 {[%clk 0:00:03]}  a4 {[%clk 0:01:42]} 26. Rd3 {[%clk 0:00:03]}  Ke6 {[%clk 0:01:38]} 27. Rf3 {[%clk 0:00:02]}  Rf8 {[%clk 0:01:36]} 28. Rd3 {[%clk 0:00:02]}  Kf5 {[%clk 0:01:35]} 29. Bc1 {[%clk 0:00:02]}  Re8 {[%clk 0:01:33]} 30. Rf3+ {[%clk 0:00:02]}  Ke6 {[%clk 0:01:31]} 31. Rd3 {[%clk 0:00:02]}  Be5 {[%clk 0:01:27]} 32. h4 {[%clk 0:00:01]}  Bf6 {[%clk 0:01:26]} 33. g3 {[%clk 0:00:01]}  Kd6 {[%clk 0:01:26]} 0-1


[Site "https://www.chess.com"]

[Event "Titled Tuesday Blitz April 11 Early 2023"]
[White "Gracia Alvarez, Gerardo Antonio"]
[Black "Weetik, Vjacheslav"]
[WhiteFideId "5109124"]
[BlackFideId "4153472"]
[WhiteElo "2160"]
[BlackElo "2469"]
[Result "0-1"]
[Round "01"]
[TimeControl "180+2"]
[Date "2023.04.11"]
[WhiteClock "0:00:02"]
[BlackClock "0:00:05"]

1. e4 {[%clk 0:02:58]}  c5 {[%clk 0:02:59]} 2. Nf3 {[%clk 0:02:55]}  Nc6 {[%clk 0:03:00]} 3. b4 {[%clk 0:02:54]}  cxb4 {[%clk 0:02:51]} 4. d4 {[%clk 0:02:52]}  d5 {[%clk 0:02:38]} 5. exd5 {[%clk 0:02:53]}  Qxd5 {[%clk 0:02:37]} 6. c4 {[%clk 0:02:54]}  Qh5 {[%clk 0:02:37]} 7. d5 {[%clk 0:02:44]}  Ne5 {[%clk 0:02:30]} 8. Nbd2 {[%clk 0:02:40]}  Nf6 {[%clk 0:02:13]} 9. Qa4+ {[%clk 0:02:32]}  Bd7 {[%clk 0:02:09]} 10. Qxb4 {[%clk 0:02:32]}  b6 {[%clk 0:01:28]} 11. Be2 {[%clk 0:02:21]}  e6 {[%clk 0:01:24]} 12. Qb3 {[%clk 0:02:19]}  Bc5 {[%clk 0:01:12]} 13. Bb2 {[%clk 0:02:06]}  Neg4 {[%clk 0:01:05]} 14. O-O {[%clk 0:01:51]}  O-O {[%clk 0:01:02]} 15. h3 {[%clk 0:01:47]}  exd5 {[%clk 0:01:02]} 16. hxg4 {[%clk 0:01:17]}  Nxg4 {[%clk 0:01:02]} 17. cxd5 {[%clk 0:01:13]}  Rfe8 {[%clk 0:00:52]} 18. Qc3 {[%clk 0:01:06]}  f6 {[%clk 0:00:48]} 19. Bc4 {[%clk 0:00:55]}  Re3 {[%clk 0:00:39]} 20. Qc1 {[%clk 0:00:37]}  Rae8 {[%clk 0:00:31]} 21. g3 {[%clk 0:00:20]}  Qh3 {[%clk 0:00:24]} 22. Qd1 {[%clk 0:00:15]}  Re1 {[%clk 0:00:10]} 23. Qxe1 {[%clk 0:00:06]}  Qxg3+ {[%clk 0:00:10]} 24. Kh1 {[%clk 0:00:06]}  Qh3+ {[%clk 0:00:09]} 25. Kg1 {[%clk 0:00:05]}  Rxe1 {[%clk 0:00:08]} 26. Raxe1 {[%clk 0:00:05]}  Qg3+ {[%clk 0:00:08]} 27. Kh1 {[%clk 0:00:05]}  Bxf2 {[%clk 0:00:07]} 28. d6+ {[%clk 0:00:04]}  Kf8 {[%clk 0:00:05]} 29. Re2 {[%clk 0:00:02]}  Qh3+ {[%clk 0:00:05]} 0-1


[Site "https://www.chess.com"]